[Event "Live Chess"]
[Site "Chess.com"]
[Date "2024.06.01"]
[Round "-"]
[White "KeithArkell"]
[Black "alicechristina"]
[Result "1-0"]
[WhiteElo "2514"]
[BlackElo "1632"]
[TimeControl "300"]
[EndTime "9:28:54 PDT"]
[Termination "KeithArkell won by resignation"]

1. d4 {[%clk 0:04:57.2]} 1... d5 {[%clk 0:04:58.9]} 2. Nf3 {[%clk 0:04:56.2]}
2... e6 {[%clk 0:04:57.1]} 3. c4 {[%clk 0:04:56.1]} 3... c6 {[%clk 0:04:56]} 4.
cxd5 {[%clk 0:04:55.6]} 4... exd5 {[%clk 0:04:54.7]} 5. Nc3 {[%clk 0:04:55.1]}
5... Nf6 {[%clk 0:04:54.2]} 6. Qc2 {[%clk 0:04:54.7]} 6... Be7 {[%clk
0:04:52.9]} 7. Bg5 {[%clk 0:04:54.3]} 7... O-O {[%clk 0:04:51.9]} 8. e3 {[%clk
0:04:53.9]} 8... Re8 {[%clk 0:04:47.7]} 9. Bd3 {[%clk 0:04:52.7]} 9... Nbd7
{[%clk 0:04:44.4]} 10. O-O {[%clk 0:04:51.3]} 10... h6 {[%clk 0:04:43.4]} 11.
Bh4 {[%clk 0:04:49.9]} 11... Ne4 {[%clk 0:04:37.3]} 12. Bxe4 {[%clk 0:04:40]}
12... Bxh4 {[%clk 0:04:35.3]} 13. Bh7+ {[%clk 0:04:38.3]} 13... Kh8 {[%clk
0:04:32.7]} 14. Nxh4 {[%clk 0:04:37.5]} 14... Qxh4 {[%clk 0:04:31.1]} 15. Bf5
{[%clk 0:04:36.7]} 15... Nf6 {[%clk 0:04:22.8]} 16. b4 {[%clk 0:04:36.3]} 16...
Ne4 {[%clk 0:04:15.2]} 17. Bxc8 {[%clk 0:04:29.9]} 17... Raxc8 {[%clk
0:04:12.9]} 18. Nxe4 {[%clk 0:04:28.3]} 18... Rxe4 {[%clk 0:04:11.2]} 19. b5
{[%clk 0:04:24.7]} 19... Re6 {[%clk 0:04:07.9]} 20. Rfc1 {[%clk 0:04:16.6]}
20... Qg5 {[%clk 0:04:02.8]} 21. Qd1 {[%clk 0:04:09.1]} 21... Rg6 {[%clk
0:03:53.3]} 22. Qf3 {[%clk 0:04:05.1]} 22... Rf6 {[%clk 0:03:49.3]} 23. Qg3
{[%clk 0:04:04.2]} 23... Qf5 {[%clk 0:03:37.6]} 24. bxc6 {[%clk 0:03:51.7]}
24... Rfxc6 {[%clk 0:03:35.6]} 25. Rxc6 {[%clk 0:03:49.1]} 25... Rxc6 {[%clk
0:03:35.2]} 26. Qb8+ {[%clk 0:03:44.4]} 26... Kh7 {[%clk 0:03:34.3]} 27. Qxb7
{[%clk 0:03:36.5]} 27... Rc2 {[%clk 0:03:27.4]} 28. Rf1 {[%clk 0:03:34.4]} 28...
Rxa2 {[%clk 0:03:23]} 29. Qb3 {[%clk 0:03:30.8]} 29... Rc2 {[%clk 0:03:15.4]}
30. h3 {[%clk 0:03:25.6]} 30... Rc6 {[%clk 0:02:55.8]} 31. Qa4 {[%clk
0:03:19.9]} 31... Rg6 {[%clk 0:02:52.1]} 32. Kh2 {[%clk 0:03:09.8]} 32... Qe4
{[%clk 0:02:26.8]} 33. g3 {[%clk 0:03:01.4]} 33... Qd3 {[%clk 0:02:16.9]} 34.
Rc1 {[%clk 0:02:57.7]} 34... a6 {[%clk 0:02:09.8]} 35. Qc2 {[%clk 0:02:50.7]}
35... Qxc2 {[%clk 0:01:58.1]} 36. Rxc2 {[%clk 0:02:50.6]} 36... Rb6 {[%clk
0:01:56.2]} 37. Ra2 {[%clk 0:02:49.2]} 37... Kg6 {[%clk 0:01:54.5]} 38. Ra5
{[%clk 0:02:48.1]} 38... Rd6 {[%clk 0:01:51.7]} 39. g4 {[%clk 0:02:47.4]} 39...
Kf6 {[%clk 0:01:48.6]} 40. Kg3 {[%clk 0:02:46.5]} 40... Ke6 {[%clk 0:01:47]} 41.
h4 {[%clk 0:02:46.1]} 41... Rb6 {[%clk 0:01:41.9]} 42. Kf4 {[%clk 0:02:43.9]}
42... Rd6 {[%clk 0:01:37.8]} 43. h5 {[%clk 0:02:43]} 43... Kf6 {[%clk
0:01:35.2]} 44. Rc5 {[%clk 0:02:38.2]} 44... Ke6 {[%clk 0:01:32.2]} 45. Rc7
{[%clk 0:02:37.1]} 45... Rd7 {[%clk 0:01:26.9]} 46. Rc6+ {[%clk 0:02:36.2]}
46... Rd6 {[%clk 0:01:26]} 47. Rc8 {[%clk 0:02:32.6]} 47... Rb6 {[%clk
0:01:20.6]} 48. Rg8 {[%clk 0:02:25.8]} 48... Kf6 {[%clk 0:01:12.1]} 49. Ra8
{[%clk 0:02:23.7]} 49... Ke6 {[%clk 0:01:08.5]} 50. Ra7 {[%clk 0:02:21.9]} 50...
Kf6 {[%clk 0:01:06.3]} 51. f3 {[%clk 0:02:20.9]} 51... g5+ {[%clk 0:01:00.1]}
52. hxg6 {[%clk 0:02:19.4]} 52... fxg6 {[%clk 0:00:59.4]} 53. Rd7 {[%clk
0:02:06.6]} 53... g5+ {[%clk 0:00:56.1]} 54. Kg3 {[%clk 0:02:05.4]} 54... Ke6
{[%clk 0:00:55.3]} 55. Rh7 {[%clk 0:02:04]} 55... Rb3 {[%clk 0:00:47.1]} 56.
Rxh6+ {[%clk 0:02:03.2]} 56... Kf7 {[%clk 0:00:46.5]} 57. Kf2 {[%clk 0:02:00.7]}
57... a5 {[%clk 0:00:44.8]} 58. Ra6 {[%clk 0:01:59.1]} 58... Ra3 {[%clk
0:00:44.1]} 59. f4 {[%clk 0:01:58.1]} 59... gxf4 {[%clk 0:00:42.7]} 60. exf4
{[%clk 0:01:57.4]} 60... a4 {[%clk 0:00:42.2]} 61. g5 {[%clk 0:01:56.3]} 61...
Ra1 {[%clk 0:00:41.3]} 62. Kf3 {[%clk 0:01:51.6]} 62... a3 {[%clk 0:00:40.4]}
63. Kg4 {[%clk 0:01:50.9]} 63... a2 {[%clk 0:00:34.5]} 64. Kf5 {[%clk
0:01:50.1]} 64... Ke7 {[%clk 0:00:31.8]} 65. g6 {[%clk 0:01:49.1]} 65... Kf8
{[%clk 0:00:31.1]} 66. Kf6 {[%clk 0:01:47.1]} 1-0

[Event "Live Chess"]
[Site "Chess.com"]
[Date "2024.06.01"]
[Round "-"]
[White "peteopeteo"]
[Black "NottheBishopSacrifice"]
[Result "0-1"]
[WhiteElo "1623"]
[BlackElo "2113"]
[TimeControl "300"]
[EndTime "9:28:58 PDT"]
[Termination "NottheBishopSacrifice won on time"]

1. e4 {[%clk 0:04:59]} 1... c6 {[%clk 0:04:59.2]} 2. Nc3 {[%clk 0:04:57.9]} 2...
d5 {[%clk 0:04:59.1]} 3. Nf3 {[%clk 0:04:57.2]} 3... dxe4 {[%clk 0:04:59]} 4.
Nxe4 {[%clk 0:04:52.7]} 4... Nf6 {[%clk 0:04:58.9]} 5. Ng3 {[%clk 0:04:50]} 5...
g6 {[%clk 0:04:55.5]} 6. Bc4 {[%clk 0:04:49.3]} 6... Bg7 {[%clk 0:04:54.9]} 7.
O-O {[%clk 0:04:37.4]} 7... O-O {[%clk 0:04:52.1]} 8. c3 {[%clk 0:04:36.7]} 8...
Nbd7 {[%clk 0:04:50.4]} 9. Qb3 {[%clk 0:04:35.7]} 9... Nb6 {[%clk 0:04:48.2]}
10. d4 {[%clk 0:04:27.3]} 10... Nxc4 {[%clk 0:04:46.8]} 11. Qxc4 {[%clk
0:04:27.2]} 11... a5 {[%clk 0:04:45.9]} 12. Re1 {[%clk 0:04:17]} 12... Be6
{[%clk 0:04:43.3]} 13. Qd3 {[%clk 0:03:38]} 13... Bd5 {[%clk 0:04:40.5]} 14. Be3
{[%clk 0:03:29.8]} 14... b5 {[%clk 0:04:36.7]} 15. Ne5 {[%clk 0:03:23.6]} 15...
Nd7 {[%clk 0:04:35.2]} 16. Nxd7 {[%clk 0:03:08.8]} 16... Qxd7 {[%clk 0:04:35.1]}
17. Ne4 {[%clk 0:03:03.4]} 17... a4 {[%clk 0:04:31.3]} 18. Nc5 {[%clk
0:03:02.5]} 18... Qc7 {[%clk 0:04:30.9]} 19. g3 {[%clk 0:02:47.6]} 19... e5
{[%clk 0:04:29]} 20. Rad1 {[%clk 0:02:34.2]} 20... exd4 {[%clk 0:04:27.3]} 21.
Bxd4 {[%clk 0:02:31.8]} 21... Rfe8 {[%clk 0:04:25.9]} 22. Bxg7 {[%clk
0:02:06.6]} 22... Kxg7 {[%clk 0:04:25.8]} 23. Re2 {[%clk 0:01:57.8]} 23... Bc4
{[%clk 0:04:19.5]} 24. Qd4+ {[%clk 0:01:55.1]} 24... Kg8 {[%clk 0:04:19.1]} 25.
Rxe8+ {[%clk 0:01:47.9]} 25... Rxe8 {[%clk 0:04:19]} 26. Nd7 {[%clk 0:01:45]}
26... Re6 {[%clk 0:03:51.1]} 27. Nc5 {[%clk 0:01:36.7]} 27... Re2 {[%clk
0:03:44.5]} 28. Qf6 {[%clk 0:01:18.6]} 28... Bd5 {[%clk 0:03:37.6]} 29. b4
{[%clk 0:00:57.2]} 29... Qe5 {[%clk 0:03:33.5]} 30. Qxe5 {[%clk 0:00:41.4]}
30... Rxe5 {[%clk 0:03:33.4]} 31. Nd3 {[%clk 0:00:39.3]} 31... Re2 {[%clk
0:03:30.6]} 32. a3 {[%clk 0:00:38.4]} 32... Ra2 {[%clk 0:03:28.8]} 33. Nf4
{[%clk 0:00:38]} 33... Rxa3 {[%clk 0:03:27.6]} 34. Nxd5 {[%clk 0:00:37.3]} 34...
cxd5 {[%clk 0:03:26.6]} 35. Rxd5 {[%clk 0:00:36.6]} 35... Rxc3 {[%clk
0:03:26.2]} 36. Rxb5 {[%clk 0:00:35.9]} 36... a3 {[%clk 0:03:25.5]} 37. Ra5
{[%clk 0:00:35.2]} 37... Rb3 {[%clk 0:03:24.4]} 38. Kg2 {[%clk 0:00:33.7]} 38...
Kf8 {[%clk 0:03:23.1]} 39. b5 {[%clk 0:00:32.4]} 39... Ke7 {[%clk 0:03:22.3]}
40. Ra7+ {[%clk 0:00:31.4]} 40... Ke6 {[%clk 0:03:20.6]} 41. b6 {[%clk
0:00:29.5]} 41... h5 {[%clk 0:03:15.8]} 42. b7 {[%clk 0:00:28.4]} 42... h4
{[%clk 0:03:13.9]} 43. Ra6+ {[%clk 0:00:26.9]} 43... Ke7 {[%clk 0:03:12]} 44.
b8=Q {[%clk 0:00:25.5]} 44... Rxb8 {[%clk 0:03:10.1]} 45. Rxa3 {[%clk
0:00:25.3]} 45... Rb4 {[%clk 0:03:08.7]} 46. Re3+ {[%clk 0:00:24.4]} 46... Kf8
{[%clk 0:03:07.3]} 47. gxh4 {[%clk 0:00:23.4]} 47... Rxh4 {[%clk 0:03:07.2]} 48.
Kg3 {[%clk 0:00:22.5]} 48... Ra4 {[%clk 0:03:06.2]} 49. Rf3 {[%clk 0:00:21.7]}
49... Kg7 {[%clk 0:03:05.6]} 50. h4 {[%clk 0:00:20.6]} 50... f5 {[%clk 0:03:05]}
51. Rf4 {[%clk 0:00:19.9]} 51... Ra3+ {[%clk 0:03:03.5]} 52. f3 {[%clk
0:00:19.5]} 52... Ra1 {[%clk 0:03:02.7]} 53. Kg2 {[%clk 0:00:18.1]} 53... Ra2+
{[%clk 0:03:01.5]} 54. Kg3 {[%clk 0:00:17.6]} 54... Rb2 {[%clk 0:03:00.7]} 55.
h5 {[%clk 0:00:15.6]} 55... Kh6 {[%clk 0:02:59.3]} 56. hxg6 {[%clk 0:00:14.9]}
56... Kxg6 {[%clk 0:02:59.2]} 57. Rh4 {[%clk 0:00:14]} 57... Kg5 {[%clk
0:02:57.7]} 58. Rd4 {[%clk 0:00:12.8]} 58... Rb1 {[%clk 0:02:53.8]} 59. Kg2
{[%clk 0:00:11.5]} 59... f4 {[%clk 0:02:52.1]} 60. Rd5+ {[%clk 0:00:10.6]} 60...
Kh4 {[%clk 0:02:51.2]} 61. Rd8 {[%clk 0:00:08.8]} 61... Rb2+ {[%clk 0:02:50.6]}
62. Kf1 {[%clk 0:00:07.8]} 62... Kg3 {[%clk 0:02:50.3]} 63. Rg8+ {[%clk
0:00:06]} 63... Kxf3 {[%clk 0:02:49.1]} 64. Ke1 {[%clk 0:00:04.6]} 64... Rb1+
{[%clk 0:02:47.8]} 65. Kd2 {[%clk 0:00:03.8]} 65... Kf2 {[%clk 0:02:47.4]} 66.
Rh8 {[%clk 0:00:02]} 66... f3 {[%clk 0:02:44.7]} 67. Rh2+ {[%clk 0:00:01.4]}
67... Kg3 {[%clk 0:02:44.4]} 0-1

[Event "Live Chess"]
[Site "Chess.com"]
[Date "2024.06.01"]
[Round "-"]
[White "E2E4colchester"]
[Black "Queensandpawns"]
[Result "0-1"]
[WhiteElo "989"]
[BlackElo "2466"]
[TimeControl "300"]
[EndTime "9:29:14 PDT"]
[Termination "Queensandpawns won by resignation"]

1. d4 {[%clk 0:04:53.8]} 1... c5 {[%clk 0:04:58.6]} 2. dxc5 {[%clk 0:04:50]}
2... Nc6 {[%clk 0:04:57.6]} 3. e3 {[%clk 0:04:47.8]} 3... Nf6 {[%clk 0:04:57.5]}
4. Nc3 {[%clk 0:04:45.9]} 4... g6 {[%clk 0:04:57.4]} 5. b3 {[%clk 0:04:43.6]}
5... Bg7 {[%clk 0:04:57.3]} 6. Bb2 {[%clk 0:04:42.9]} 6... O-O {[%clk
0:04:56.4]} 7. Nf3 {[%clk 0:04:40.6]} 7... Ne4 {[%clk 0:04:55.9]} 8. Bd3 {[%clk
0:04:37.7]} 8... Nxc3 {[%clk 0:04:54.7]} 9. Bxc3 {[%clk 0:04:36.3]} 9... Bxc3+
{[%clk 0:04:54.6]} 10. Nd2 {[%clk 0:04:29.2]} 10... Bxa1 {[%clk 0:04:54.5]} 11.
Qxa1 {[%clk 0:04:28.2]} 11... Qa5 {[%clk 0:04:53.7]} 12. Be2 {[%clk 0:04:16.7]}
12... Qxc5 {[%clk 0:04:51.7]} 13. c4 {[%clk 0:04:13.4]} 13... Qe5 {[%clk
0:04:51]} 14. Qxe5 {[%clk 0:04:10.6]} 14... Nxe5 {[%clk 0:04:50.9]} 15. Nf3
{[%clk 0:04:09]} 15... Nxf3+ {[%clk 0:04:49.6]} 16. Bxf3 {[%clk 0:04:08.2]}
16... Rb8 {[%clk 0:04:49.5]} 17. O-O {[%clk 0:04:06.2]} 17... d6 {[%clk
0:04:49.4]} 18. Rd1 {[%clk 0:04:05.2]} 18... Rd8 {[%clk 0:04:48]} 19. h3 {[%clk
0:04:03.5]} 19... Be6 {[%clk 0:04:47.9]} 20. Bd5 {[%clk 0:04:01.1]} 20... b5
{[%clk 0:04:47.8]} 21. Bxe6 {[%clk 0:03:57.6]} 21... fxe6 {[%clk 0:04:47.3]} 22.
Rd4 {[%clk 0:03:51.6]} 22... bxc4 {[%clk 0:04:46.2]} 23. Rxc4 {[%clk 0:03:50.5]}
23... Rdc8 {[%clk 0:04:44.2]} 24. Rxc8+ {[%clk 0:03:47.4]} 24... Rxc8 {[%clk
0:04:44.1]} 25. a4 {[%clk 0:03:43]} 25... Rc1+ {[%clk 0:04:42.8]} 26. Kh2 {[%clk
0:03:42]} 26... Rb1 {[%clk 0:04:42.7]} 27. Kg3 {[%clk 0:03:39.3]} 27... Rxb3
{[%clk 0:04:41.8]} 28. a5 {[%clk 0:03:38.1]} 28... Ra3 {[%clk 0:04:41.7]} 29. f4
{[%clk 0:03:36.5]} 29... Rxa5 {[%clk 0:04:40.8]} 30. Kf3 {[%clk 0:03:35.8]}
30... Rb5 {[%clk 0:04:40.7]} 31. g3 {[%clk 0:03:35]} 31... Rb8 {[%clk
0:04:40.6]} 32. h4 {[%clk 0:03:34.3]} 32... a5 {[%clk 0:04:40.5]} 33. g4 {[%clk
0:03:33.6]} 33... a4 {[%clk 0:04:40.4]} 0-1

[Event "Live Chess"]
[Site "Chess.com"]
[Date "2024.06.01"]
[Round "-"]
[White "MellowAesthetic"]
[Black "DJ_Lambton"]
[Result "1-0"]
[WhiteElo "2072"]
[BlackElo "1736"]
[TimeControl "300"]
[EndTime "9:29:23 PDT"]
[Termination "MellowAesthetic won by resignation"]

1. e4 {[%clk 0:04:58.3]} 1... c6 {[%clk 0:04:59.9]} 2. d4 {[%clk 0:04:57]} 2...
d5 {[%clk 0:04:59.6]} 3. exd5 {[%clk 0:04:56.9]} 3... cxd5 {[%clk 0:04:59.5]} 4.
c4 {[%clk 0:04:56.1]} 4... Nf6 {[%clk 0:04:58.9]} 5. Nc3 {[%clk 0:04:55.4]} 5...
Nc6 {[%clk 0:04:58.3]} 6. Nf3 {[%clk 0:04:54.6]} 6... Bg4 {[%clk 0:04:57.7]} 7.
cxd5 {[%clk 0:04:49.8]} 7... Nxd5 {[%clk 0:04:54.2]} 8. Qb3 {[%clk 0:04:48.8]}
8... Bxf3 {[%clk 0:04:51.4]} 9. gxf3 {[%clk 0:04:47.9]} 9... e6 {[%clk 0:04:51]}
10. Qxb7 {[%clk 0:04:46.1]} 10... Nxd4 {[%clk 0:04:50.4]} 11. Bb5+ {[%clk
0:04:45.6]} 11... Nxb5 {[%clk 0:04:49.2]} 12. Qc6+ {[%clk 0:04:44.9]} 12... Ke7
{[%clk 0:04:48.5]} 13. Qxb5 {[%clk 0:04:43.4]} 13... Qd7 {[%clk 0:04:47.9]} 14.
Nxd5+ {[%clk 0:04:40.2]} 14... exd5 {[%clk 0:04:45.2]} 15. Bg5+ {[%clk 0:03:34]}
15... f6 {[%clk 0:04:41.9]} 16. Qxd7+ {[%clk 0:03:33.5]} 16... Kxd7 {[%clk
0:04:41.2]} 17. Be3 {[%clk 0:03:33.1]} 17... Bd6 {[%clk 0:04:38.8]} 18. O-O-O
{[%clk 0:03:30.6]} 18... Rhc8+ {[%clk 0:04:30.9]} 19. Kb1 {[%clk 0:03:28.6]}
19... Rab8 {[%clk 0:04:29.3]} 20. Rxd5 {[%clk 0:03:02]} 20... Ke6 {[%clk
0:04:28.3]} 21. Rxd6+ {[%clk 0:02:10.6]} 21... Kxd6 {[%clk 0:04:25.7]} 22. Bf4+
{[%clk 0:02:10.3]} 22... Ke6 {[%clk 0:04:24.4]} 23. Bxb8 {[%clk 0:02:10.2]}
23... Rxb8 {[%clk 0:04:24.1]} 24. Re1+ {[%clk 0:02:07.6]} 24... Kf7 {[%clk
0:04:22.3]} 25. Re4 {[%clk 0:01:56.2]} 25... Rb7 {[%clk 0:04:20.1]} 26. b4
{[%clk 0:01:50.8]} 26... f5 {[%clk 0:04:18.4]} 27. Rc4 {[%clk 0:01:46.6]} 27...
g6 {[%clk 0:04:16.7]} 28. a4 {[%clk 0:01:42.1]} 28... Ke6 {[%clk 0:04:15.9]} 29.
Kc2 {[%clk 0:01:36.4]} 29... Kd5 {[%clk 0:04:14.6]} 30. Kc3 {[%clk 0:01:25.1]}
30... Re7 {[%clk 0:04:12.2]} 31. Rc5+ {[%clk 0:01:23.2]} 31... Kd6 {[%clk
0:04:10.5]} 32. Ra5 {[%clk 0:01:20.9]} 32... Rc7+ {[%clk 0:04:09.2]} 33. Kd4
{[%clk 0:01:17.6]} 33... Ke6 {[%clk 0:04:06.9]} 34. Ra6+ {[%clk 0:01:10.2]}
34... Kf7 {[%clk 0:04:04.9]} 35. b5 {[%clk 0:01:07]} 35... Rd7+ {[%clk
0:04:03.8]} 36. Kc5 {[%clk 0:01:05.2]} 36... Rc7+ {[%clk 0:04:02.8]} 37. Kd6
{[%clk 0:00:56.1]} 37... Re7 {[%clk 0:04:02.1]} 38. a5 {[%clk 0:00:46.5]} 38...
Re6+ {[%clk 0:04:01]} 39. Kc7 {[%clk 0:00:45]} 39... Rxa6 {[%clk 0:04:00.4]} 40.
bxa6 {[%clk 0:00:43.6]} 40... Ke7 {[%clk 0:03:59.9]} 41. Kb7 {[%clk 0:00:41.7]}
41... Kd7 {[%clk 0:03:59.2]} 42. Kxa7 {[%clk 0:00:39.9]} 42... Kc7 {[%clk
0:03:58.6]} 43. f4 {[%clk 0:00:34.9]} 43... h6 {[%clk 0:03:53.7]} 44. h4 {[%clk
0:00:26.3]} 44... h5 {[%clk 0:03:35]} 45. f3 {[%clk 0:00:25.5]} 45... Kc8 {[%clk
0:03:31]} 46. Kb6 {[%clk 0:00:24.5]} 46... Kb8 {[%clk 0:03:30.4]} 47. Kc6 {[%clk
0:00:23.6]} 47... Ka7 {[%clk 0:03:29.7]} 48. Kd6 {[%clk 0:00:23.2]} 48... Kxa6
{[%clk 0:03:29.5]} 49. Ke6 {[%clk 0:00:22.9]} 49... Kxa5 {[%clk 0:03:29.4]} 50.
Kf6 {[%clk 0:00:22.5]} 50... Kb4 {[%clk 0:03:29.3]} 51. Kxg6 {[%clk 0:00:22.1]}
51... Kc4 {[%clk 0:03:29.2]} 52. Kxf5 {[%clk 0:00:21.7]} 52... Kd3 {[%clk
0:03:28.7]} 53. Kg5 {[%clk 0:00:20.9]} 53... Ke3 {[%clk 0:03:28.6]} 54. f5
{[%clk 0:00:20.4]} 54... Kxf3 {[%clk 0:03:28.5]} 55. f6 {[%clk 0:00:20.1]} 55...
Kg3 {[%clk 0:03:28]} 56. f7 {[%clk 0:00:19.8]} 56... Kg2 {[%clk 0:03:27.2]} 57.
f8=Q {[%clk 0:00:19.4]} 1-0

[Event "Live Chess"]
[Site "Chess.com"]
[Date "2024.06.01"]
[Round "-"]
[White "Pedrada88"]
[Black "SvitlanaJ"]
[Result "1-0"]
[WhiteElo "2552"]
[BlackElo "393"]
[TimeControl "300"]
[EndTime "9:29:23 PDT"]
[Termination "Pedrada88 won by checkmate"]

1. d4 {[%clk 0:04:57.9]} 1... d5 {[%clk 0:04:58.3]} 2. Nf3 {[%clk 0:04:57.3]}
2... Nc6 {[%clk 0:04:52.4]} 3. c4 {[%clk 0:04:53]} 3... dxc4 {[%clk 0:04:47.4]}
4. d5 {[%clk 0:04:52.4]} 4... Na5 {[%clk 0:04:35.3]} 5. e4 {[%clk 0:04:51.2]}
5... e5 {[%clk 0:04:29]} 6. Nxe5 {[%clk 0:04:49.7]} 6... Bb4+ {[%clk 0:04:21.7]}
7. Nc3 {[%clk 0:04:46.3]} 7... Bxc3+ {[%clk 0:04:18]} 8. bxc3 {[%clk 0:04:45]}
8... Qh4 {[%clk 0:04:08.5]} 9. Qf3 {[%clk 0:04:38.3]} 9... Nf6 {[%clk
0:03:51.3]} 10. Nxc4 {[%clk 0:04:30.4]} 10... Nxc4 {[%clk 0:03:41.3]} 11. Bxc4
{[%clk 0:04:30.3]} 11... Nxe4 {[%clk 0:03:38.8]} 12. O-O {[%clk 0:04:29.7]}
12... O-O {[%clk 0:03:07.1]} 13. g3 {[%clk 0:04:28.7]} 13... Qh3 {[%clk
0:02:56.4]} 14. Qxe4 {[%clk 0:04:26.8]} 14... Re8 {[%clk 0:02:41.6]} 15. Qxe8#
{[%clk 0:04:25]} 1-0

[Event "Live Chess"]
[Site "Chess.com"]
[Date "2024.06.01"]
[Round "-"]
[White "hapehansen"]
[Black "TigerTank70"]
[Result "1-0"]
[WhiteElo "2253"]
[BlackElo "2167"]
[TimeControl "300"]
[EndTime "9:29:30 PDT"]
[Termination "hapehansen won by resignation"]

1. d4 {[%clk 0:04:54.9]} 1... d5 {[%clk 0:04:58.8]} 2. c4 {[%clk 0:04:53.2]}
2... e5 {[%clk 0:04:58]} 3. dxe5 {[%clk 0:04:47.5]} 3... d4 {[%clk 0:04:57.9]}
4. Nf3 {[%clk 0:04:45.3]} 4... Nc6 {[%clk 0:04:57]} 5. a3 {[%clk 0:04:43.7]}
5... Bg4 {[%clk 0:04:55.8]} 6. Nbd2 {[%clk 0:04:40.7]} 6... Qd7 {[%clk
0:04:54.7]} 7. g3 {[%clk 0:04:38]} 7... Nge7 {[%clk 0:04:53.1]} 8. Bg2 {[%clk
0:04:36.6]} 8... Ng6 {[%clk 0:04:51.6]} 9. O-O {[%clk 0:04:26.2]} 9... O-O-O
{[%clk 0:04:46.6]} 10. b4 {[%clk 0:04:23]} 10... Ncxe5 {[%clk 0:04:43]} 11. Bb2
{[%clk 0:04:19.4]} 11... Qf5 {[%clk 0:04:00]} 12. Nxd4 {[%clk 0:04:05.6]} 12...
Qh5 {[%clk 0:03:58.3]} 13. f3 {[%clk 0:04:04.3]} 13... Bh3 {[%clk 0:03:57]} 14.
Qc2 {[%clk 0:03:53.5]} 14... c5 {[%clk 0:03:10.7]} 15. bxc5 {[%clk 0:03:51.5]}
15... Bxc5 {[%clk 0:03:08.9]} 16. Nb3 {[%clk 0:03:49.9]} 16... Bxg2 {[%clk
0:02:34.3]} 17. Kxg2 {[%clk 0:03:44.1]} 17... Bxd4 {[%clk 0:02:20.7]} 18. Nxd4
{[%clk 0:03:40.6]} 18... Ne7 {[%clk 0:02:13.4]} 19. Nb5 {[%clk 0:03:29]} 19...
N7c6 {[%clk 0:02:01.9]} 20. Rad1 {[%clk 0:03:22.1]} 20... a6 {[%clk 0:01:56.1]}
21. Nd6+ {[%clk 0:03:18]} 21... Kc7 {[%clk 0:01:52.6]} 22. Qf5 {[%clk
0:03:03.5]} 22... Qxf5 {[%clk 0:01:37.1]} 23. Nxf5 {[%clk 0:03:03.4]} 23... Nxc4
{[%clk 0:01:35.9]} 24. Bxg7 {[%clk 0:02:53.5]} 24... Rhg8 {[%clk 0:01:30.5]} 25.
Bf6 {[%clk 0:02:40.5]} 25... Rxd1 {[%clk 0:01:18]} 26. Rxd1 {[%clk 0:02:39.2]}
26... Nxa3 {[%clk 0:01:14.2]} 27. Ne7 {[%clk 0:02:23.2]} 27... Re8 {[%clk
0:00:56.7]} 28. Nd5+ {[%clk 0:02:15.6]} 28... Kb8 {[%clk 0:00:49.9]} 29. e4
{[%clk 0:02:13.2]} 29... b5 {[%clk 0:00:44.6]} 30. Ra1 {[%clk 0:02:09.6]} 30...
b4 {[%clk 0:00:27]} 31. Nxb4 {[%clk 0:02:08]} 31... Nxb4 {[%clk 0:00:24.6]} 32.
Rxa3 {[%clk 0:02:06.4]} 32... Kb7 {[%clk 0:00:22.7]} 33. Rb3 {[%clk 0:02:04.7]}
33... a5 {[%clk 0:00:17.7]} 34. Bc3 {[%clk 0:02:03.5]} 34... Kc6 {[%clk
0:00:16.7]} 35. Bxb4 {[%clk 0:02:02.5]} 35... axb4 {[%clk 0:00:15.8]} 36. Rxb4
{[%clk 0:02:01.4]} 1-0